Cogmind - Beta 16 --- EXPLORER MODE // 2025.12.03 @ 15:06:20 Player: K.K.Y. Result: Destroyed by VK-2VY(R) with Subdweller Laser Performance ------------- Evolutions (0) 0 Regions Visited (3) 600 Robots Destroyed (45) 225 Value Destroyed (571) 571 Prototype IDs (0) 0 Alien Tech Used (0) 0 Bonus (-49) -49 TOTAL SCORE: 1347 Bonus ------- Friendly Fire -49 Cogmind --------- Core Integrity 0/250 Matter 18/300 Energy 95/100 System Corruption 0% Temperature Cool (6) Movement Treading (160) Location -10/Subcaves Parts ------- > --- POWER (1) -------- (None) > --- PROPULSION (2) --- Light Treads > --- UTILITY (3) ------ Terrain Scan Processor Terrain Scan Processor > --- WEAPON (2) ------- Bore Cannon Makeshift Sword > --- INVENTORY (5) ---- Light Angular Momentum Engine Huge Storage Unit Machine Analyzer Improved Terrain Scanner Armor Integrity Analyzer Peak State ------------ > --- POWER ------------ Ion Engine > --- PROPULSION ------- Light Treads Light Treads > --- UTILITY ---------- Improved Terrain Scanner Terrain Scan Processor Terrain Scan Processor > --- WEAPON ----------- Bore Cannon Makeshift Sword > --- INVENTORY -------- Light Angular Momentum Engine Huge Storage Unit Improved Terrain Scanner Armor Integrity Analyzer [Rating: 20] Favorites ----------- Power Ion Engine Engine Ion Engine Propulsion Light Treads Treads Light Treads Utility Terrain Scan Processor Device Improved Terrain Scanner Storage Huge Storage Unit Processor Terrain Scan Processor Weapon Medium Laser Energy Gun Medium Laser Ballistic Cannon Bore Cannon Special Weapon Mining Laser Slashing Weapon Makeshift Sword Special Melee Weapon Datajack Build | -11 -10 -10 -10 ------- Run | Yrd Mat Min Sub Slots Evolved 1 | . 1 . . Power . | . . . . Propulsion . | . . . . Utility 1 | . 1 . . Weapon . | . . . . Parts Attached 22 | 9 8 1 4 Power 3 | 1 2 . . Engine 3 | 1 2 . . Core . | . . . . Reactor . | . . . . Propulsion 5 | 2 2 1 . Treads 5 | 2 2 1 . Leg . | . . . . Wheel . | . . . . Hover . | . . . . Flight . | . . . . Utility 7 | 4 3 . . Device 3 | 3 . . . Storage 2 | 1 1 . . Processor 2 | . 2 . . Hackware . | . . . . Protection . | . . . . Artifact . | . . . . Weapon 7 | 2 1 . 4 Energy Gun 2 | 2 . . . Energy Cannon . | . . . . Ballistic Gun . | . . . . Ballistic Cannon 1 | . . . 1 Launcher . | . . . . Special Weapon 2 | . . . 2 Impact Weapon . | . . . . Slashing Weapon 1 | . . . 1 Piercing Weapon . | . . . . Special Melee Weapon 1 | . 1 . . Unidentified Prototypes . | . . . . Parts Lost 8 | . . . 8 Power 1 | . . . 1 Propulsion 1 | . . . 1 Utility 2 | . . . 2 Weapon 4 | . . . 4 Highest Loss Streak 5 | . . . 5 To Critical Strikes . | . . . . Average Backups 4 | 4 5 5 4 Power . | . . . . Propulsion . | . . . . Utility 2 | 1 2 3 3 Weapon 1 | 2 2 2 . Tool/Special . | . . . . Unused Backups 5 | . 1 . 4 Power 1 | . . . 1 Propulsion . | . . . . Utility 3 | . . . 3 Weapon 1 | . 1 . . Tool/Special . | . . . . Average Slot Usage (%) 91 | . 77 100 93 Engine 10 | . 10 12 9 Treads 24 | . 24 25 21 Device 12 | . 15 12 11 Processor 20 | . 9 25 25 Energy Gun 10 | . 15 12 2 Ballistic Cannon 2 | . . . 8 Slashing Weapon 2 | . . . 8 Special Melee Weapon 5 | . . 12 3 Peak Build Rating 20 | 11 12 12 20 Average Rating 11 | 8 8 12 17 On Entrance 8 | . 9 12 12 Avg Prop Armor Cover (%) . | . . . . Naked Turns . | . . . . Heaviest Build 17 | 9 9 9 17 Greatest Support 40 | 40 40 40 40 Greatest Overweight (x) 1 | . 1 . . Average Overweight (x) . | . . . . Largest Inventory Capacity 25 | 5 25 5 5 Average Capacity 5 | 5 5 5 5 Most Carried 5 | 5 5 5 5 Average Carried 4 | 4 5 5 4 Final Capacity 5 | 5 5 5 5 Final Carried 5 | 5 5 5 5 Class Distribution -------------------- 58% | Scavenger-Mutant 41% | Hacker-Mutant Dominant Class ---------------- Hacker-Mutant | -10/Materials Scavenger-Mutant | -10/Mines Scavenger-Mutant | -10/Subcaves Resources | -11 -10 -10 -10 ----------- Run | Yrd Mat Min Sub Matter Collected 541 | 280 110 20 131 Remotely . | . . . . Salvage Created 988 | 324 419 . 245 Parts 81 | 30 39 . 12 Haulers Intercepted 1 | . 1 . . Recyclers Shooed 2 | 1 1 . . Parts Field Recycled . | . . . . Retrieved Matter . | . . . . Parts Self-Destructed . | . . . . Prevented . | . . . . Parts Restored . | . . . . Kills | -11 -10 -10 -10 ------- Run | Yrd Mat Min Sub Combat Hostiles Destroyed 17 | . 9 . 8 Guns 12 | . 9 . 3 Cannons 5 | . . . 5 Classes Destroyed 11 | 3 6 . 2 Worker 5 | 4 1 . . Builder 6 | . 6 . . Tunneler 9 | 9 . . . Hauler 1 | . 1 . . Recycler 1 | 1 . . . Mechanic 1 | . 1 . . Turret 2 | . . . 2 Watcher 3 | . 3 . . Swarmer 11 | . 8 . 3 Grunt 1 | . 1 . . Subdweller 5 | . . . 5 Best Kill Streak 6 | 6 5 . 4 Combat Bots Only 3 | . 3 . 2 Max Kills in Single Turn 1 | 1 1 . 1 Gunslinging . | . . . . Exploded . | . . . . Melee . | . . . . Uniques/NPCs Destroyed . | . . . . Combat | -11 -10 -10 -10 -------- Run | Yrd Mat Min Sub Hostile Shots Fired 129 | . 34 . 95 Missed 40 | . 13 . 27 Hits 89 | . 21 . 68 Projectile 89 | . 21 . 68 Critical Strikes 2 | . . . 2 Damage Taken 908 | . 158 . 750 Core 257 | . 28 . 229 Absorbed by Shields . | . . . . Ignored by Resistances 521 | . 106 . 415 Core Remaining (%) 100 | 100 . . . Volleys Fired 152 | 22 58 2 70 Largest 2 | 2 1 1 1 Hottest 100 | 100 50 50 100 Shots Fired 174 | 44 58 2 70 Gun 115 | 44 58 2 11 Cannon 54 | . . . 54 Launcher . | . . . . Special 5 | . . . 5 Kinetic 54 | . . . 54 Thermal 120 | 44 58 2 16 Explosive . | . . . . Electromagnetic . | . . . . Robot Hit Streak 20 | 13 20 5 16 Robot Miss Streak 3 | 1 3 . 2 Penetration Max . | . . . . Secondary Targets . | . . . . Shots Hit Robots 134 | 28 49 19 38 Core Hits 52 | 15 24 . 13 Critical Kills 4 | . . . 4 Critical Parts Destroyed 1 | . . . 1 Critical Strikes 17 | 3 5 . 9 Burn 9 | 3 5 . 1 Destroy 7 | . . . 7 Sever 1 | . . . 1 Melee Attacks 22 | . . 18 4 Impact . | . . . . Slashing 3 | . . . 3 Piercing . | . . . . Sneak Attacks 17 | . . 17 . Combat Hostiles . | . . . . Follow-up Attacks . | . . . . Damage Inflicted 1618 | 353 613 24 628 Guns 1106 | 353 613 24 116 Cannons 378 | . . . 378 Explosions . | . . . . Melee 38 | . . . 38 Ramming . | . . . . Kinetic 378 | . . . 378 Thermal 1202 | 353 613 24 212 Explosive . | . . . . Electromagnetic . | . . . . Impact . | . . . . Slashing 38 | . . . 38 Piercing . | . . . . Highest Corruption . | . . . . Average Corruption . | . . . . Corruption Purged . | . . . . Corruption Blocked . | . . . . Overload Shots . | . . . . Overflow Damage 1 | . . . 1 Projectiles 1 | . . . 1 Explosions . | . . . . Melee . | . . . . Knockbacks 3 | . . . 3 Impact . | . . . . Kinetic 3 | . . . 3 Secondary . | . . . . Self-Inflicted Damage . | . . . . Shots . | . . . . Rammed . | . . . . Targets Rammed . | . . . . Kicked . | . . . . Crushed . | . . . . Highest Temperature 164 | 156 86 20 164 Average Temperature 40 | 53 25 10 81 Received Heat Transfer 503 | . 12 . 491 Siege Activations . | . . . . Martial Activations . | . . . . Shielding Activations . | . . . . Robots Disrupted . | . . . . Combat Hostiles . | . . . . Robots Corrupted . | . . . . Combat Hostiles . | . . . . Parts Fried . | . . . . Impact Corruptions . | . . . . Robots Melted . | . . . . Combat Hostiles . | . . . . Parts Melted 12 | 3 8 . 1 Heat Transferred 4122 | 1258 2183 74 607 Parts Sabotaged . | . . . . Parts Stolen . | . . . . Parts Stripped . | . . . . Power Chain Reactions . | . . . . Alert | -11 -10 -10 -10 ------- Run | Yrd Mat Min Sub Maximum Alert Level . | . . . . Low Security (%) 100 | 100 100 100 . Level 1 . | . . . . Level 2 . | . . . . Level 3 . | . . . . Level 4 . | . . . . Level 5 . | . . . . High Security . | . . . . Max Security . | . . . . Peak Influence 55 | 15 55 1 . Initial 1 | . . 1 . Average 2 | . 6 . . Influence Increases 534 | 70 293 . 171 Destroy 0b10 Robot/C 280 | . 180 . 100 Destroy 0b10 Robot/NC 130 | 70 60 . . Destroy Leader 58 | . 48 . 10 Allied During Kill 1 | . . . 1 Successful Hack 5 | . 5 . . Lose Combat Pursuer 60 | . . . 60 Influence Decreases 534 | 70 288 5 171 Entered New Map 4 | . . 4 . Time Decay 510 | 70 288 1 151 Lost Part 20 | . . . 20 Squads Dispatched . | . . . . Investigation . | . . . . Extermination . | . . . . Reinforcement . | . . . . Assault . | . . . . Garrison . | . . . . Intercept . | . . . . Searches Triggered . | . . . . Construction Impeded . | . . . . Haulers Reinforced . | . . . . Active Scanning Responses . | . . . . Cargo Convoy Interrupts . | . . . . Stealth | -11 -10 -10 -10 --------- Run | Yrd Mat Min Sub Distress Signals 2 | . 2 . . Communications Jammed . | . . . . Distress Signals . | . . . . Times Spotted 37 | . 16 . 21 Peak Tracking Total 6 | . 3 . 6 Tactical Retreats 3 | . . . 3 Traps | -11 -10 -10 -10 ------- Run | Yrd Mat Min Sub Traps Triggered 9 | . 7 . 2 Indirectly . | . . . . Trap Hack Attempts . | . . . . Triggered . | . . . . Disarmed . | . . . . Reprogrammed . | . . . . Reused . | . . . . Traps Extracted . | . . . . Installed . | . . . . Triggered . | . . . . Machines | -11 -10 -10 -10 ---------- Run | Yrd Mat Min Sub Machines Disabled 2 | . . . 2 Max in Single Turn 1 | . . . 1 Machines Repaired . | . . . . Machines Dismantled . | . . . . Machines Sabotaged . | . . . . Overloaded Fab Kills . | . . . . Hacking | -11 -10 -10 -10 --------- Run | Yrd Mat Min Sub Machines Accessed 6 | . 6 . . Terminals 6 | . 6 . . Fabricators . | . . . . Repair Stations . | . . . . Recycling Units . | . . . . Scanalyzers . | . . . . Garrison Access . | . . . . Total Hacks 8 | . 8 . . Successful 6 | . 6 . . Failed 2 | . 2 . . Catastrophic . | . . . . Database Lockouts . | . . . . Manual 8 | . 8 . . Terminals 8 | . 8 . . Fabricators . | . . . . Repair Stations . | . . . . Recycling Units . | . . . . Scanalyzers . | . . . . Garrison Access . | . . . . Terminal Hacks . | . . . . Fabricator Hacks . | . . . . Repair Station Hacks . | . . . . Recycling Unit Hacks . | . . . . Scanalyzer . | . . . . Garrison Access Hacks . | . . . . Unauthorized Hacks 6 | . 6 . . Terminals 6 | . 6 . . Botnet 6 | . 6 . . Fabricators . | . . . . Repair Stations . | . . . . Recycling Units . | . . . . Scanalyzers . | . . . . Garrison Access . | . . . . Data Cores Recovered . | . . . . Used . | . . . . Hacking Detections 3 | . 3 . . Full Trace Events 1 | . 1 . . Feedback Events . | . . . . Feedback Blocked . | . . . . Robot Schematics Acquired . | . . . . Robots Built . | . . . . Authchips . | . . . . Time . | . . . . Total Robot Build Rating . | . . . . Part Schematics Acquired . | . . . . Parts Built . | . . . . Authchips . | . . . . Time . | . . . . Total Part Build Rating . | . . . . Part Studies Acquired . | . . . . Parts Repaired . | . . . . Time . | . . . . Parts Recycled . | . . . . Recycled Matter . | . . . . Retrieved Matter . | . . . . Retrieved Components . | . . . . Parts Scanalyzed . | . . . . Part Schematics Acquired . | . . . . Parts Damaged . | . . . . Bothacking | -11 -10 -10 -10 ------------ Run | Yrd Mat Min Sub Used RIF Installer . | . . . . Robots Hacked 11 | . . 11 . Non-combat 8 | . . 8 . Combat 3 | . . 3 . Robot Hacks Applied 11 | . . 11 . parse_system 3 | . . 3 . no_distress 8 | . . 8 . Relay Couplers Released . | . . . . Fabnet Peak Effective % . | . . . . Robots Rewired . | . . . . Allies Hacked . | . . . . Hacks Repelled . | . . . . Allies | -11 -10 -10 -10 -------- Run | Yrd Mat Min Sub Total Allies 2 | . . 2 . Largest Group 2 | . . 2 2 Highest-Rated Group 48 | . . 48 48 Highest-Rated Ally 31 | . . 31 31 Total Orders . | . . . . Ally Attacks 4 | . . . 4 Total Damage 80 | . . . 80 Kills . | . . . . Allies Corrupted . | . . . . Allies Melted 1 | . . . 1 Intel | -11 -10 -10 -10 ------- Run | Yrd Mat Min Sub Active Infowar (turns) 4736 | 1089 1116 1505 1026 Terrain 4736 | 1089 1116 1505 1026 Seismic 787 | 505 282 . . Robot Analysis Total . | . . . . Derelict Logs Recovered 1 | . . 1 . Drone Launches . | . . . . Drone Recoveries . | . . . . Exploration | -11 -10 -10 -10 ------------- Run | Yrd Mat Min Sub Turns Passed 4868 | 1169 1116 1505 1078 Spaces Moved 2222 | 236 574 859 553 Core 47 | 46 1 . . Treads 2175 | 190 573 859 553 Legs . | . . . . Wheels . | . . . . Hover . | . . . . Flight . | . . . . Fastest Speed 50 | 50 100 160 160 Average Speed 157 | 138 159 160 160 Slowest Speed 160 | 160 160 160 160 Overloaded Moves . | . . . . Propulsion Burnouts . | . . . . Robots Hopped . | . . . . Potential Cave-ins . | . . . . Cave-ins Triggered . | . . . . Exploration Rate (%) 53 | 5 79 101 28 Regions Visited 3 Branch Regions 2 Pre-discovered Areas 1 | . . 1 . Known Exits Taken 3 | 1 1 1 . Unknown Exits Taken . | . . . . Scrap Searched . | . . . . Spaces Dug 5 | . . . 5 Terrain Destroyed 13 | . . . 13 Melee . | . . . . Projectile 13 | . . . 13 AOE . | . . . . Terrain Rammed . | . . . . Walls Destroyed . | . . . . Machines Disabled . | . . . . Actions | -11 -10 -10 -10 --------- Run | Yrd Mat Min Sub Total 3388 | 1034 713 979 662 Wait 940 | 753 63 99 25 Move 2219 | 235 573 858 553 Hop . | . . . . Pick Up 19 | 13 1 . 5 Fast Attach 10 | 1 9 . . Attach 12 | 7 . . 5 Detach . | . . . . Swap 5 | 1 3 1 . Drop 9 | 2 6 1 . Fire 152 | 22 58 2 70 Melee 22 | . . 18 4 Ram . | . . . . Kick . | . . . . Crush . | . . . . Escape Stasis . | . . . . Rewire . | . . . . Trap . | . . . . Miscellaneous . | . . . . Route ------- -11/Scrapyard -10/Materials (discovered 4 exits: *Mat x2 / *Min x2) -10/Mines (discovered 3 exits: *Mat x2 / *Sub) -10/Subcaves (discovered 2 exits: *Mat / Rec) History --------- Turn | Location | Event 15 | -11/Scrapyard | Identified exit to Materials 15 | -11/Scrapyard | Discovered exit to Materials (range 15) 1170 | -11/Scrapyard | Entered Materials 1170 | -10/Materials | Evolved 1 slot: Utility x1 1171 | -10/Materials | Build established: Hacker-Mutant 1312 | -10/Materials | Identified exit to Mines 1312 | -10/Materials | Discovered exit to Mines (range 16) 1904 | -10/Materials | Identified exit to Materials 1904 | -10/Materials | Discovered exit to Materials (range 11) 2153 | -10/Materials | Discovered exit to Materials (range 13) 2179 | -10/Materials | Discovered exit to Mines (range 7) 2250 | -10/Materials | Build established: Scavenger-Mutant 2286 | -10/Materials | Entered Mines 2394 | -10/Mines | Discovered exit to Materials (range 13) 2601 | -10/Mines | Learned Materials garrison access intel 2794 | -10/Mines | Learned location of Storage (-9) 3606 | -10/Mines | Received a Rocket Launcher from a helpful Derelict 3618 | -10/Mines | Discovered exit to Materials (range 14) 3678 | -10/Mines | Identified exit to Subcaves 3678 | -10/Mines | Discovered exit to Subcaves (range 12) 3791 | -10/Mines | Entered Subcaves 3791 | -10/Subcaves | Accompanied by 2 allies 3792 | -10/Subcaves | Approached by a straggling Scientist 3796 | -10/Subcaves | Led the pair of lost Derelicts to an unsafe place 4004 | -10/Subcaves | Ambushed by swarm of Subdwellers 4004 | -10/Subcaves | Ambushed by Subdwellers from Twisted Machinery 4056 | -10/Subcaves | Core integrity fell below 50% 4064 | -10/Subcaves | Core integrity fell below 20% 4082 | -10/Subcaves | Lost 7 allies 4096 | -10/Subcaves | Lost 5 parts (1u4w) 4244 | -10/Subcaves | Identified exit to Materials 4244 | -10/Subcaves | Discovered exit to Materials (range 14) 4462 | -10/Subcaves | Visited 4L-MR0's lab 4701 | -10/Subcaves | Identified exit to Recycling 4701 | -10/Subcaves | Discovered exit to Recycling (range 16) 4869 | -10/Subcaves | Destroyed by VK-2VY(R) with Subdweller Laser Last Messages --------------- 04701_ EXIT=FOUND: RECYCLING 04711_ HV Slug penetrates Twisted Machinery. 04722_ MW-3V1(u) tweaks Twisted Machinery. 04723_ HV Slug penetrates Twisted Machinery. 04729_ MW-3V1(u) builds Twisted Machinery. 04741_ HV Slug penetrates Twisted Machinery. 04774_ Acquired 1 matter. 04775_ Acquired 2 matter. 04854_ VK-2VY(R): "LEAVESUB!" 04857_ HV Slug penetrates Twisted Machinery. 04861_ Imp. Terrain Scanner destroyed. 04865_ HV Slug penetrates Twisted Machinery. 04869_ HV Slug penetrates VK-2VY(R). 04869_ HV Slug penetrates Twisted Machinery. Map ----- +----------------------------------------------------+ | ######### # [%## # #### ######???##?????????? | | ##### "" " =% = ###?#?###??#???? | | ###" ! ^ #########?????? | | ?### ##### # # # ^ #####?#???#?#??? | | ?### ##### # ######### ## ########?##?##???? | | ##"" "##### ############ #########??###?#?? | | """ "##### ########## #####?#??##???#?? | | """#" ###### ########## #####??##????#?? | | ""## ## ### ## # # #?#?#?#??#?#???? | | ####! "" ## ## ## ##?#??#?#??????? | | ### "" #### ####??#??#?#???? | | ###" " ## ##### #?###?#????#???? | | ##"" """"" ##### ### #######?#???#??? | | " " """" ########## ### #??#??????####?? | | """ ######### ##?#?#####?#????? | | " ####?#### ###?##?##??#?#???? | | ""[ ########?# ## ##?###??###??#???? | | "" ################### #?#?#??#####????? | | "" ####?############?### ######?#?##??#??? | | ##?####?############## #?##??###???????? | | #######???######?########## ##??#?###?#?#????? | | ??##?###?###?###?#??####### ##??#?##???#?????? | | #########?##########??#?### ###???#????###???? | | #???#??##########?#?##### #??#?###??###????? | | ????##?#???#?####?????## "##??#?##??##?#???? | | ####?##?##??########### @ "##?????#??#??#????? | | ??###?#????#?###??????# % ###??##?###?#???????? | | ???#???#??#?#####?##??##""R ##??????###????????? | | ##?#???#???#?##??#?????#"" ##???##????#?#??????? | | #??##?##?##??#??###??#?##"""#?#?#?##???????????? | | ?#???????#?????#?#????#?#"""?#???#?????????????? | | ??????????????##??????### ?####??#??#??????? | | ???????????????#?#?##?#? ??"?####??????????? | | ????????????????#????#?#?? "?" ##????????????? | | ???????????????##???????? ?"""???????#?????????? | | ?????????????????#?###?????????#???????????????? | | ????????????????????????"?? ??????#????????????? | | ???????????????????????????????????????????????? | | ???????????????????#?#?? ?????"?#??????????????? | | ???????????????????????????????????????????????? | | ???????????????????????????????????????????????? | | ???????????????????????????????????????????????? | | ???????????????????????????????????????????????? | | ???????????????????????????????????????????????? | | ???????????????????????????????????????????????? | | ???????????????????????????????????????????????? | | ???????????????????????????????????????????????? | | ???????????????????????????????????????????????? | | ???????????????????????????????????????????????? | | ???????????????????????????????????????????????? | +----------------------------------------------------+ Best States ------------- Heat Dissipation 25 Energy Generation 10 Energy Capacity 250 Matter Stores 300 Matter Capacity 300 Sight Range 16 Terrain Scan Range 16 Terrain Scan Density 160 Resistance: KI 35 Resistance: TH 35 Resistance: EX 35 Resistance: EM 35 Resistance: I 35 Resistance: S 35 Resistance: P 35 Evasion (%) 50 Recoil Reduction 2 Offensive Hacking 20 Item Schematics ----------------- None Robot Schematics ------------------ None Fabricated ------------ Nothing Repaired ---------- Nothing Studied --------- None Alien Tech Used ----------------- None Achievements -------------- None Challenges ------------ None Game ------ Seed ShockboltEnhancedTerminator Manual? 0 Play Time 00:24:17 Cumulative 161.9 hours Start 2025.12.03 @ 14:37:30 End 2025.12.03 @ 15:06:20 Sessions 1 Manual Loads 0 Difficulty Explorer Special Mode None Game No. 212 Rogue 0 Adventurer 0 Explorer 212 Win Type - Total 0 Types 0/0/0/0/0/0/0/0/0/0 Lore% 70 Gallery% 66 Achievement% 52 Wizard Run 0 Options --------- Layout 1 ASCII 0 Keyboard 0 Movement Mouse Keybinds 0 Fullscreen 1 Font 24/Smallcaps Map View 50x35 Zoom Use 0% Tactical HUD 1 Map Filters NONE Filters NONE Steam 1 RUN: c3d06495-a1bd-446a-9978-5fd73ab8c6c7